[Event "Krakow Championship-C 2022"]
[Site "Krakow"]
[Date "2022.06.30"]
[Round "7.3"]
[White "Chmielewski, Miroslaw"]
[Black "Wegrzyn, Bartosz"]
[Result "0-1"]
[ECO "C00"]
[WhiteElo "1571"]
[BlackElo "1286"]
[Annotator "NA RC"]
[PlyCount "102"]
[EventDate "2022.06.25"]
[EventType "swiss"]
[EventCountry "POL"]
[SourceTitle "playchess.com"]
[Source "ChessBase"]
[SourceQuality "1"]
[TimeControl "5400+30"]

1. e4 {[%emt 0:00:26]} e6 {[%emt 0:00:07]} 2. Nc3 {[%emt 0:02:38]} d5 {[%emt 0:00:21]} 3. d3 {[%emt 0:02:33]} d4 {[%emt 0:00:47]} 4. Nce2 {[%emt 0:00:00]} c5 {[%emt 0:00:15]} 5. g3 {[%emt 0:00:18]} Nc6 {[%emt 0:00:16]} 6. Bg2 {[%emt 0:00:06]} Be7 {[%emt 0:03:57]} 7. f4 {[%emt 0:00:20]} Nf6 {[%emt 0:00:44]} 8. h3 {[%emt 0:00:23]} O-O {[%emt 0:04:09]} 9. Nf3 {[%emt 0:00:16]} Qb6 {[%emt 0:05:52]} 10. b3 {[%emt 0:01:41]} Nd7 {[%emt 0:02:23]} 11. O-O {[%emt 0:00:32]} f6 {[%emt 0:02:40]} 12. g4 {[%emt 0:13:17]} Kh8 {[%emt 0:07:38]} 13. Bd2 {[%emt 0:03:34]} e5 {[%emt 0:01:15]} 14. f5 {[%emt 0:01:10]} Rg8 {[%emt 0:07:28]} 15. Qe1 {[%emt 0:02:09]} Nf8 {[%emt 0:03:29]} 16. Ng3 {[%emt 0:06:49]} Bd7 {[%emt 0:02:29]} 17. Kh2 {[%emt 0:05:44]} Be8 {[%emt 0:01:20]} 18. g5 {[%emt 0:05:32]} Nd8 {[%emt 0:04:45]} 19. h4 {[%emt 0:01:28]} Qc7 {[%emt 0:07:05]} 20. Bh3 {[%emt 0:00:38]} b5 {[%emt 0:03:42]} 21. Rg1 {[%emt 0:03:12]} c4 {[%emt 0:01:00]} 22. gxf6 {[%emt 0:08:54]} gxf6 {[%emt 0:00:28]} 23. Ne2 {[%emt 0:00:22]} Rxg1 {[%emt 0:01:32]} 24. Qxg1 {[%emt 0:00:08]} cxd3 {[%emt 0:02:24]} 25. cxd3 {[%emt 0:00:08]} Bd6 {[%emt 0:02:00]} 26. Bh6 {[%emt 0:01:05]} Qf7 {[%emt 0:03:18]} 27. Qg2 {[%emt 0:06:02]} Nd7 {[%emt 0:00:44]} 28. Rg1 {[%emt 0:00:18]} Bf8 {[%emt 0:00:18]} 29. Bd2 {[%emt 0:02:52]} Nc5 {[%emt 0:02:46]} 30. Ne1 {[%emt 0:02:30]} Nc6 {[%emt 0:01:38]} 31. Bg4 {[%emt 0:00:40]} Qg8 {[%emt 0:01:33]} 32. Qf3 {[%emt 0:00:26]} Qf7 {[%emt 0:02:37]} 33. Ng3 {[%emt 0:01:27]} Qe7 {[%emt 0:02:36]} 34. h5 {[%emt 0:04:15]} Nd8 {[%emt 0:02:14]} 35. Ng2 {[%emt 0:01:11]} Nf7 {[%emt 0:00:54]} 36. Nh4 {[%emt 0:00:39]} Bh6 {[%emt 0:02:26]} 37. Bxh6 {[%emt 0:06:21]} Nxh6 {[%emt 0:00:09]} 38. Bh3 {[%emt 0:00:07]} Nf7 {[%emt 0:00:18]} 39. Bf1 {[%emt 0:03:08]} Ng5 {[%emt 0:00:16]} 40. Qf2 {[%emt 0:01:01]} Rc8 {[%emt 0:02:06]} 41. Ng6+ {[%emt 0:02:39]} hxg6 {[%emt 0:00:15]} 42. fxg6 {[%emt 0:00:27]} Bd7 43. h6 Rg8 {[%emt 0:13:14]} 44. Nf5 {[%emt 0:01:21]} Bxf5 {[%emt 0:00:34]} 45. Qxf5 {[%emt 0:00:09]} Nce6 {[%emt 0:00:54]} 46. Rg4 {[%emt 0:06:34]} Ng7 {[%emt 0:01:47]} 47. hxg7+ {[%emt 0:00:55]} Kxg7 {[%emt 0:00:47]} 48. Rh4 {[%emt 0:00:47]} Qe8 {[%emt 0:01:49]} 49. Be2 {[%emt 0:00:54]} Qxg6 {[%emt 0:00:23]} 50. Qd7+ {[%emt 0:00:56]} Kf8 51. Bh5 Nf3+ {[%emt 0:03:01]} 0-1

[Event "Krakow Championship-C 2022"]
[Site "Krakow"]
[Date "2022.06.30"]
[Round "7.4"]
[White "Jokel, Marcin"]
[Black "Herka, Jakub"]
[Result "1-0"]
[ECO "A46"]
[WhiteElo "1413"]
[BlackElo "1494"]
[Annotator "NA RC"]
[PlyCount "49"]
[EventDate "2022.06.25"]
[EventType "swiss"]
[EventCountry "POL"]
[SourceTitle "playchess.com"]
[Source "ChessBase"]
[SourceQuality "1"]
[TimeControl "5400+30"]

1. d4 {[%emt 0:00:22]} Nf6 {[%emt 0:00:09]} 2. Nf3 {[%emt 0:00:06]} e6 {[%emt 0:00:06]} 3. g3 {[%emt 0:00:11]} b6 {[%emt 0:00:12]} 4. Bg2 {[%emt 0:00:11]} Bb7 {[%emt 0:00:12]} 5. O-O {[%emt 0:00:07]} Be7 {[%emt 0:00:40]} 6. c4 {[%emt 0:00:10]} c6 {[%emt 0:00:55]} 7. Nc3 {[%emt 0:01:07]} d5 {[%emt 0:00:24]} 8. cxd5 {[%emt 0:01:45]} cxd5 {[%emt 0:00:41]} 9. Bf4 {[%emt 0:06:33]} O-O {[%emt 0:05:38]} 10. Rc1 {[%emt 0:04:51]} Nbd7 {[%emt 0:11:06]} 11. Nb5 {[%emt 0:06:40]} Nh5 {[%emt 0:04:59]} 12. Bc7 {[%emt 0:02:03]} Qe8 {[%emt 0:03:03]} 13. Nd6 {[%emt 0:01:08]} Bxd6 {[%emt 0:01:04]} 14. Bxd6 {[%emt 0:00:13]} f6 {[%emt 0:10:28]} 15. Bxf8 {[%emt 0:03:43]} Kxf8 {[%emt 0:00:17]} 16. e3 {[%emt 0:03:26]} g6 {[%emt 0:00:24]} 17. Qa4 {[%emt 0:01:28]} a6 {[%emt 0:01:15]} 18. Rc7 {[%emt 0:02:12]} b5 {[%emt 0:00:07]} 19. Qb4+ {[%emt 0:01:14]} Kg8 {[%emt 0:01:19]} 20. Rxb7 {[%emt 0:01:06]} Qc8 {[%emt 0:00:11]} 21. Rxd7 {[%emt 0:00:57]} Qxd7 {[%emt 0:00:10]} 22. Rc1 {[%emt 0:00:50]} Rc8 {[%emt 0:00:09]} 23. Rxc8+ {[%emt 0:02:08]} Qxc8 {[%emt 0:00:05]} 24. Qc5 {[%emt 0:00:31]} Qd7 {[%emt 0:00:20]} 25. Ne1 {[%emt 0:03:18]} 1-0

[Event "Krakow Championship-C 2022"]
[Site "Krakow"]
[Date "2022.06.30"]
[Round "7.5"]
[White "Niczyporuk, Jakub"]
[Black "Kuznik, Kamil"]
[Result "1/2-1/2"]
[ECO "A15"]
[WhiteElo "1363"]
[BlackElo "1456"]
[Annotator "NA RC"]
[PlyCount "125"]
[EventDate "2022.06.25"]
[EventType "swiss"]
[EventCountry "POL"]
[SourceTitle "playchess.com"]
[Source "ChessBase"]
[SourceQuality "1"]
[TimeControl "5400+30"]

1. c4 {[%emt 0:02:57]} Nf6 {[%emt 0:01:10]} 2. g3 {[%emt 0:00:16]} e6 {[%emt 0:00:35]} 3. Nc3 {[%emt 0:01:07]} d5 {[%emt 0:00:21]} 4. cxd5 {[%emt 0:00:09]} exd5 {[%emt 0:00:05]} 5. d4 {[%emt 0:00:32]} c6 {[%emt 0:00:40]} 6. Bg2 {[%emt 0:00:51]} Bf5 {[%emt 0:00:39]} 7. Nf3 {[%emt 0:01:07]} Be7 {[%emt 0:02:18]} 8. Qb3 {[%emt 0:03:49]} Qb6 {[%emt 0:00:20]} 9. Qxb6 {[%emt 0:01:26]} axb6 {[%emt 0:00:07]} 10. Nh4 {[%emt 0:00:30]} Be6 {[%emt 0:01:49]} 11. a3 {[%emt 0:01:59]} Nbd7 {[%emt 0:01:05]} 12. f4 {[%emt 0:03:28]} g6 {[%emt 0:03:56]} 13. O-O {[%emt 0:02:24]} b5 {[%emt 0:08:20]} 14. f5 {[%emt 0:03:50]} gxf5 {[%emt 0:00:11]} 15. Nxf5 {[%emt 0:00:05]} Bxf5 {[%emt 0:03:47]} 16. Rxf5 {[%emt 0:00:07]} b4 {[%emt 0:00:31]} 17. Nb1 {[%emt 0:02:45]} Rg8 {[%emt 0:06:17]} 18. Nd2 {[%emt 0:01:39]} Ng4 {[%emt 0:13:11]} 19. Nf3 {[%emt 0:05:29]} bxa3 {[%emt 0:03:29]} 20. bxa3 {[%emt 0:09:21]} Ra4 {[%emt 0:04:15]} 21. Rb1 {[%emt 0:11:06]} Rc4 {[%emt 0:06:06]} 22. Bg5 {[%emt 0:10:43]} Bxg5 {[%emt 0:04:00]} 23. Rxg5 {[%emt 0:02:06]} Rxg5 {[%emt 0:00:51]} 24. Nxg5 {[%emt 0:00:05]} Rxd4 {[%emt 0:00:41]} 25. h3 {[%emt 0:03:07]} Ne3 {[%emt 0:02:10]} 26. Rxb7 {[%emt 0:00:35]} Nxg2 {[%emt 0:00:24]} 27. Kxg2 {[%emt 0:00:08]} h6 {[%emt 0:01:01]} 28. Nxf7 {[%emt 0:01:14]} h5 {[%emt 0:06:13]} 29. Nd6+ {[%emt 0:01:23]} Kd8 {[%emt 0:00:28]} 30. Rb4 {[%emt 0:03:42]} Rd2 {[%emt 0:00:25]} 31. Kf2 {[%emt 0:00:52]} c5 {[%emt 0:01:32]} 32. Rh4 {[%emt 0:02:11]} c4 {[%emt 0:04:46]} 33. Nxc4 {[%emt 0:03:39]} dxc4 {[%emt 0:01:08]} 34. Rxc4 {[%emt 0:00:01]} Ra2 {[%emt 0:00:16]} 35. Ra4 {[%emt 0:01:14]} Ke7 {[%emt 0:01:02]} 36. g4 {[%emt 0:01:26]} hxg4 {[%emt 0:00:38]} 37. hxg4 {[%emt 0:00:04]} Kf6 {[%emt 0:01:11]} 38. Ra5 {[%emt 0:00:33]} Ne5 {[%emt 0:02:05]} 39. g5+ {[%emt 0:03:44]} Kf5 {[%emt 0:00:28]} 40. g6 {[%emt 0:00:42]} Kxg6 41. Rxe5 {[%emt 0:00:14]} Rxa3 {[%emt 0:00:09]} 42. Re3 {[%emt 0:01:13]} Ra5 {[%emt 0:01:05]} 43. Rf3 {[%emt 0:00:44]} Ra2 {[%emt 0:02:51]} 44. Rf8 {[%emt 0:01:20]} Rb2 {[%emt 0:01:05]} 45. Kf3 {[%emt 0:00:18]} Rb3+ {[%emt 0:00:45]} 46. e3 {[%emt 0:00:12]} Kg5 {[%emt 0:00:30]} 47. Rd8 {[%emt 0:00:51]} Kf5 {[%emt 0:00:22]} 48. Rd5+ {[%emt 0:00:08]} Ke6 {[%emt 0:00:06]} 49. Ra5 {[%emt 0:00:50]} Rc3 {[%emt 0:00:47]} 50. Kf4 {[%emt 0:00:27]} Rc4+ {[%emt 0:00:13]} 51. e4 {[%emt 0:00:14]} Rc1 {[%emt 0:00:12]} 52. Ra6+ {[%emt 0:00:11]} Ke7 {[%emt 0:00:06]} 53. Kf5 {[%emt 0:00:19]} Rf1+ {[%emt 0:00:11]} 54. Ke5 {[%emt 0:00:05]} Rb1 {[%emt 0:01:05]} 55. Ra7+ {[%emt 0:00:05]} Ke8 {[%emt 0:00:07]} 56. Kf5 {[%emt 0:00:19]} Rb5+ {[%emt 0:00:18]} 57. e5 {[%emt 0:00:18]} Rb6 {[%emt 0:06:40]} 58. Ra8+ {[%emt 0:04:10]} Ke7 {[%emt 0:00:12]} 59. Ra7+ {[%emt 0:00:12]} Ke8 {[%emt 0:00:07]} 60. e6 {[%emt 0:00:04]} Rb1 {[%emt 0:00:28]} 61. Ra8+ {[%emt 0:02:29]} Ke7 {[%emt 0:00:05]} 62. Ke5 {[%emt 0:00:05]} Rb5+ {[%emt 0:00:04]} 63. Ke4 1/2-1/2

[Event "Krakow Championship-C 2022"]
[Site "Krakow"]
[Date "2022.06.30"]
[Round "7.6"]
[White "Gazda, Jacek"]
[Black "Bajer, Jakub"]
[Result "1-0"]
[ECO "B33"]
[WhiteElo "1418"]
[BlackElo "1358"]
[Annotator "NA RC"]
[PlyCount "55"]
[EventDate "2022.06.25"]
[EventType "swiss"]
[EventCountry "POL"]
[SourceTitle "playchess.com"]
[Source "ChessBase"]
[SourceQuality "1"]
[TimeControl "5400+30"]

1. e4 {[%emt 0:10:33]} c5 {[%emt 0:23:39]} 2. Nf3 {[%emt 0:00:30]} Nc6 {[%emt 0:00:21]} 3. d4 {[%emt 0:00:07]} cxd4 {[%emt 0:00:06]} 4. Nxd4 {[%emt 0:00:09]} Nf6 {[%emt 0:00:04]} 5. Nc3 {[%emt 0:00:05]} e5 {[%emt 0:00:03]} 6. Ndb5 {[%emt 0:00:06]} d6 {[%emt 0:00:06]} 7. Bg5 {[%emt 0:00:17]} a6 {[%emt 0:00:05]} 8. Na3 {[%emt 0:00:05]} b5 {[%emt 0:00:04]} 9. Nd5 {[%emt 0:00:10]} Be7 {[%emt 0:00:09]} 10. Bxf6 {[%emt 0:00:09]} Bxf6 {[%emt 0:00:06]} 11. c3 {[%emt 0:00:10]} O-O {[%emt 0:00:08]} 12. Be2 {[%emt 0:01:06]} Bg5 {[%emt 0:00:10]} 13. O-O {[%emt 0:00:54]} Be6 {[%emt 0:02:28]} 14. Nc2 {[%emt 0:00:28]} Kh8 {[%emt 0:02:23]} 15. Nce3 {[%emt 0:00:26]} Bxe3 {[%emt 0:00:33]} 16. Nxe3 {[%emt 0:00:11]} Ne7 {[%emt 0:00:55]} 17. a4 {[%emt 0:02:02]} Rb8 {[%emt 0:03:47]} 18. axb5 {[%emt 0:00:54]} axb5 {[%emt 0:00:07]} 19. b4 {[%emt 0:00:42]} Qc7 {[%emt 0:06:32]} 20. Qd2 {[%emt 0:01:45]} f5 {[%emt 0:07:35]} 21. exf5 {[%emt 0:00:35]} Nxf5 {[%emt 0:00:29]} 22. Nxf5 {[%emt 0:00:31]} Bxf5 {[%emt 0:01:44]} 23. Ra5 {[%emt 0:01:11]} Be4 {[%emt 0:16:17]} 24. Rxb5 {[%emt 0:02:20]} Rxb5 {[%emt 0:02:06]} 25. Bxb5 {[%emt 0:00:06]} Rf6 {[%emt 0:04:39]} 26. Bd3 {[%emt 0:02:38]} Bb7 {[%emt 0:00:38]} 27. Re1 {[%emt 0:01:31]} Rf4 {[%emt 0:05:42]} 28. Qxf4 {[%emt 0:00:26]} 1-0

[Event "Krakow Championship-C 2022"]
[Site "Krakow"]
[Date "2022.06.30"]
[Round "7.7"]
[White "Bajer, Tomasz"]
[Black "Krasuski, Pawel"]
[Result "0-1"]
[ECO "A05"]
[WhiteElo "1437"]
[BlackElo "1682"]
[Annotator "NA RC"]
[PlyCount "90"]
[EventDate "2022.06.25"]
[EventType "swiss"]
[EventCountry "POL"]
[SourceTitle "playchess.com"]
[Source "ChessBase"]
[SourceQuality "1"]
[TimeControl "5400+30"]

1. Nf3 {[%emt 0:26:23]} Nf6 {[%emt 0:00:32]} 2. g3 {[%emt 0:00:15]} d5 {[%emt 0:00:49]} 3. Bg2 {[%emt 0:00:12]} c6 {[%emt 0:00:48]} 4. O-O {[%emt 0:00:15]} h6 {[%emt 0:00:14]} 5. d3 {[%emt 0:00:19]} Bf5 {[%emt 0:01:01]} 6. Nbd2 {[%emt 0:00:33]} e6 {[%emt 0:00:12]} 7. c4 {[%emt 0:00:21]} Be7 {[%emt 0:01:32]} 8. b3 {[%emt 0:01:11]} O-O {[%emt 0:01:35]} 9. Bb2 {[%emt 0:00:11]} Nbd7 {[%emt 0:00:14]} 10. Rc1 {[%emt 0:10:16]} a5 {[%emt 0:01:22]} 11. Nd4 {[%emt 0:11:40]} Bh7 {[%emt 0:00:22]} 12. cxd5 {[%emt 0:00:20]} exd5 {[%emt 0:01:01]} 13. N2f3 {[%emt 0:07:25]} a4 {[%emt 0:01:12]} 14. bxa4 {[%emt 0:01:39]} Nc5 {[%emt 0:00:28]} 15. Ne5 {[%emt 0:09:55]} Nfd7 {[%emt 0:01:47]} 16. Ndxc6 {[%emt 0:01:21]} bxc6 {[%emt 0:00:21]} 17. Nxc6 {[%emt 0:00:04]} Qe8 {[%emt 0:00:14]} 18. Ba3 {[%emt 0:04:38]} Bd6 {[%emt 0:00:29]} 19. d4 {[%emt 0:02:46]} Nb7 {[%emt 0:02:41]} 20. Bxd6 {[%emt 0:00:58]} Nxd6 {[%emt 0:00:12]} 21. Bxd5 {[%emt 0:00:09]} Nf6 {[%emt 0:03:25]} 22. Bg2 {[%emt 0:01:27]} Be4 {[%emt 0:01:04]} 23. Bxe4 {[%emt 0:01:54]} Qxe4 {[%emt 0:00:18]} 24. Rc3 {[%emt 0:00:45]} Nd5 {[%emt 0:00:37]} 25. Rb3 {[%emt 0:00:32]} Rfe8 {[%emt 0:06:00]} 26. Ne5 {[%emt 0:00:39]} Rxa4 {[%emt 0:03:30]} 27. e3 {[%emt 0:02:21]} Rxa2 {[%emt 0:04:24]} 28. f3 {[%emt 0:00:46]} Qf5 {[%emt 0:03:22]} 29. e4 {[%emt 0:00:18]} Qh3 {[%emt 0:00:08]} 30. Rf2 {[%emt 0:01:06]} Rxf2 {[%emt 0:00:13]} 31. Kxf2 {[%emt 0:00:02]} Qxh2+ {[%emt 0:00:19]} 32. Kf1 {[%emt 0:00:30]} Qh1+ {[%emt 0:00:28]} 33. Ke2 {[%emt 0:00:15]} Qg2+ {[%emt 0:02:37]} 34. Kd3 {[%emt 0:00:05]} Nf6 {[%emt 0:00:59]} 35. Rb6 {[%emt 0:03:09]} Ndxe4 {[%emt 0:01:22]} 36. Qb3 {[%emt 0:02:03]} Qf1+ {[%emt 0:00:41]} 37. Ke3 {[%emt 0:01:43]} Qc1+ {[%emt 0:02:39]} 38. Kd3 {[%emt 0:00:22]} Nc5+ {[%emt 0:01:52]} 39. dxc5 {[%emt 0:00:24]} Rxe5 {[%emt 0:00:44]} 40. Rb8+ {[%emt 0:00:39]} Ne8 {[%emt 0:00:13]} 41. Qb5 {[%emt 0:00:22]} Re3+ {[%emt 0:04:54]} 42. Kd4 {[%emt 0:00:07]} Qd2+ {[%emt 0:00:03]} 43. Kc4 {[%emt 0:00:04]} Qd3+ {[%emt 0:00:02]} 44. Kb4 {[%emt 0:00:14]} Qc3+ {[%emt 0:00:10]} 45. Ka4 {[%emt 0:00:03]} Qa3# {[%emt 0:00:01]} 0-1

[Event "Krakow Championship-C 2022"]
[Site "Krakow"]
[Date "2022.06.30"]
[Round "7.8"]
[White "Pawlak, Emilia"]
[Black "Kwiatkowski, Jakub"]
[Result "1-0"]
[ECO "A26"]
[WhiteElo "1477"]
[BlackElo "1750"]
[Annotator "NA RC"]
[PlyCount "65"]
[EventDate "2022.06.25"]
[EventType "swiss"]
[EventCountry "POL"]
[SourceTitle "playchess.com"]
[Source "ChessBase"]
[SourceQuality "1"]
[TimeControl "5400+30"]

1. c4 {[%emt 0:02:38]} e5 {[%emt 0:00:04]} 2. g3 {[%emt 0:00:11]} Nc6 {[%emt 0:00:06]} 3. Bg2 {[%emt 0:00:04]} g6 {[%emt 0:00:09]} 4. Nc3 {[%emt 0:00:06]} Bg7 {[%emt 0:00:07]} 5. d3 {[%emt 0:00:08]} d6 {[%emt 0:00:08]} 6. e4 {[%emt 0:00:04]} f5 {[%emt 0:00:07]} 7. Nge2 {[%emt 0:00:19]} Nf6 {[%emt 0:00:13]} 8. O-O {[%emt 0:00:11]} O-O {[%emt 0:00:26]} 9. h3 {[%emt 0:03:48]} Bd7 {[%emt 0:00:48]} 10. Be3 {[%emt 0:01:31]} Qc8 {[%emt 0:00:19]} 11. Kh2 {[%emt 0:00:06]} f4 {[%emt 0:00:33]} 12. gxf4 {[%emt 0:07:01]} Nh5 {[%emt 0:00:57]} 13. fxe5 {[%emt 0:10:24]} dxe5 {[%emt 0:00:40]} 14. Nd5 {[%emt 0:00:44]} h6 {[%emt 0:04:40]} 15. b4 {[%emt 0:06:21]} Rf7 {[%emt 0:02:48]} 16. Rc1 {[%emt 0:11:45]} g5 {[%emt 0:01:51]} 17. b5 {[%emt 0:10:07]} Nf4 {[%emt 0:04:09]} 18. bxc6 {[%emt 0:06:58]} bxc6 {[%emt 0:00:05]} 19. Ndxf4 {[%emt 0:00:41]} exf4 {[%emt 0:00:11]} 20. Bxf4 {[%emt 0:01:38]} gxf4 {[%emt 0:00:44]} 21. Ng1 {[%emt 0:00:38]} Bf6 {[%emt 0:05:10]} 22. d4 {[%emt 0:02:02]} Rg7 {[%emt 0:01:05]} 23. e5 {[%emt 0:01:25]} Bh4 {[%emt 0:01:58]} 24. d5 {[%emt 0:04:11]} cxd5 {[%emt 0:04:53]} 25. Qxd5+ {[%emt 0:01:05]} Kh7 {[%emt 0:01:04]} 26. Qxa8 {[%emt 0:01:15]} Qa6 {[%emt 0:01:14]} 27. Be4+ {[%emt 0:01:37]} Rg6 {[%emt 0:00:04]} 28. Qf8 {[%emt 0:02:24]} Qe6 {[%emt 0:00:49]} 29. Bxg6+ {[%emt 0:00:25]} Qxg6 {[%emt 0:00:06]} 30. Qxf4 {[%emt 0:01:18]} Bc6 {[%emt 0:00:18]} 31. Qg4 {[%emt 0:01:15]} Bg5 {[%emt 0:00:48]} 32. f4 {[%emt 0:01:23]} Bxf4+ {[%emt 0:00:16]} 33. Rxf4 {[%emt 0:00:06]} 1-0

[Event "Krakow Championship-C 2022"]
[Site "Krakow"]
[Date "2022.07.01"]
[Round "8.1"]
[White "Andriienko, Artom"]
[Black "Jaromin, Maciej"]
[Result "1-0"]
[ECO "D04"]
[WhiteElo "1588"]
[BlackElo "1479"]
[Annotator "NA RC"]
[PlyCount "47"]
[EventDate "2022.06.25"]
[EventType "swiss"]
[EventCountry "POL"]
[SourceTitle "playchess.com"]
[Source "ChessBase"]
[SourceQuality "1"]
[TimeControl "5400+30"]

1. d4 {[%emt 0:00:06]} Nf6 {[%emt 0:00:07]} 2. Nf3 {[%emt 0:00:13]} d5 {[%emt 0:00:11]} 3. e3 {[%emt 0:00:08]} Bf5 {[%emt 0:00:10]} 4. c4 {[%emt 0:00:06]} e6 {[%emt 0:00:17]} 5. Nc3 {[%emt 0:00:11]} c5 {[%emt 0:03:22]} 6. cxd5 {[%emt 0:01:40]} exd5 {[%emt 0:00:10]} 7. Qb3 {[%emt 0:01:03]} b6 {[%emt 0:04:56]} 8. Bb5+ {[%emt 0:00:45]} Bd7 {[%emt 0:00:35]} 9. dxc5 {[%emt 0:09:00]} Bxc5 10. O-O O-O {[%emt 0:16:20]} 11. Bxd7 {[%emt 0:05:26]} Qxd7 {[%emt 0:00:01]} 12. Rd1 {[%emt 0:00:07]} Rd8 {[%emt 0:01:59]} 13. e4 {[%emt 0:00:25]} d4 {[%emt 0:02:03]} 14. Bg5 {[%emt 0:10:04]} Re8 {[%emt 0:05:59]} 15. Bxf6 {[%emt 0:01:47]} gxf6 {[%emt 0:00:05]} 16. Nd5 {[%emt 0:00:08]} Kg7 {[%emt 0:02:53]} 17. Re1 {[%emt 0:09:20]} Nc6 {[%emt 0:00:09]} 18. Nh4 {[%emt 0:00:53]} Re5 {[%emt 0:06:15]} 19. Qf3 {[%emt 0:20:31]} Rxd5 {[%emt 0:01:17]} 20. exd5 {[%emt 0:00:06]} Ne5 {[%emt 0:00:37]} 21. Qf4 {[%emt 0:03:53]} Qxd5 {[%emt 0:06:36]} 22. Nf5+ {[%emt 0:00:15]} Kg6 {[%emt 0:00:08]} 23. Ng3 {[%emt 0:07:15]} Qd7 {[%emt 0:09:41]} 24. Qe4+ {[%emt 0:00:22]} 1-0

[Event "Krakow Championship-C 2022"]
[Site "Krakow"]
[Date "2022.07.01"]
[Round "8.2"]
[White "Piddubna, Bozhena"]
[Black "Jokel, Marcin"]
[Result "1-0"]
[ECO "E04"]
[WhiteElo "1534"]
[BlackElo "1413"]
[Annotator "NA RC"]
[PlyCount "45"]
[EventDate "2022.06.25"]
[EventType "swiss"]
[EventCountry "POL"]
[SourceTitle "playchess.com"]
[Source "ChessBase"]
[SourceQuality "1"]
[TimeControl "5400+30"]

1. c4 {[%emt 0:00:02]} e6 {[%emt 0:00:09]} 2. d4 {[%emt 0:00:45]} d5 {[%emt 0:00:14]} 3. Nf3 {[%emt 0:00:27]} Nf6 {[%emt 0:00:25]} 4. g3 {[%emt 0:00:29]} dxc4 {[%emt 0:02:27]} 5. Bg2 {[%emt 0:01:58]} c5 {[%emt 0:02:53]} 6. Qa4+ {[%emt 0:01:52]} Nc6 {[%emt 0:03:54]} 7. O-O {[%emt 0:02:32]} Rb8 {[%emt 0:08:18]} 8. dxc5 {[%emt 0:02:05]} Qa5 {[%emt 0:07:51]} 9. Qxa5 {[%emt 0:06:26]} Nxa5 {[%emt 0:00:06]} 10. Bf4 {[%emt 0:00:23]} Ra8 {[%emt 0:02:11]} 11. Bd6 {[%emt 0:10:36]} Bxd6 {[%emt 0:06:26]} 12. cxd6 {[%emt 0:00:12]} O-O {[%emt 0:01:08]} 13. Nc3 {[%emt 0:19:52]} Nc6 {[%emt 0:04:41]} 14. Nd2 {[%emt 0:03:37]} Bd7 {[%emt 0:11:39]} 15. Nxc4 {[%emt 0:00:37]} a6 {[%emt 0:00:48]} 16. Nb6 {[%emt 0:00:46]} Rad8 {[%emt 0:00:43]} 17. Rfd1 {[%emt 0:02:11]} Bc8 {[%emt 0:06:21]} 18. Nca4 {[%emt 0:01:11]} Nd7 {[%emt 0:02:55]} 19. Rac1 {[%emt 0:00:26]} Nxb6 {[%emt 0:04:36]} 20. Nxb6 {[%emt 0:00:26]} Bd7 {[%emt 0:00:34]} 21. Nxd7 {[%emt 0:01:14]} Rxd7 {[%emt 0:00:06]} 22. Bxc6 {[%emt 0:00:07]} bxc6 {[%emt 0:00:03]} 23. Rxc6 1-0

[Event "Krakow Championship-C 2022"]
[Site "Krakow"]
[Date "2022.07.01"]
[Round "8.3"]
[White "Wegrzyn, Bartosz"]
[Black "Gazda, Jacek"]
[Result "1/2-1/2"]
[ECO "D30"]
[WhiteElo "1286"]
[BlackElo "1418"]
[Annotator "NA RC"]
[PlyCount "100"]
[EventDate "2022.06.25"]
[EventType "swiss"]
[EventCountry "POL"]
[SourceTitle "playchess.com"]
[Source "ChessBase"]
[SourceQuality "1"]
[TimeControl "5400+30"]

1. d4 {[%emt 0:00:03]} d5 {[%emt 0:03:49]} 2. c4 {[%emt 0:01:15]} e6 {[%emt 0:00:10]} 3. Nf3 {[%emt 0:00:07]} c6 {[%emt 0:00:13]} 4. e3 {[%emt 0:00:15]} Nf6 {[%emt 0:00:08]} 5. b3 {[%emt 0:00:07]} Nbd7 {[%emt 0:00:13]} 6. Bb2 {[%emt 0:00:22]} b6 {[%emt 0:00:34]} 7. Bd3 {[%emt 0:00:15]} Bb7 {[%emt 0:00:17]} 8. O-O {[%emt 0:00:23]} Bd6 {[%emt 0:00:19]} 9. Nc3 {[%emt 0:06:26]} O-O {[%emt 0:02:03]} 10. cxd5 {[%emt 0:01:25]} cxd5 {[%emt 0:00:24]} 11. Rc1 {[%emt 0:04:06]} Ne4 {[%emt 0:02:11]} 12. Qe2 {[%emt 0:08:53]} f5 {[%emt 0:05:16]} 13. Rc2 {[%emt 0:04:48]} a6 {[%emt 0:05:10]} 14. Rfc1 {[%emt 0:02:06]} Ndf6 {[%emt 0:02:49]} 15. Ne5 {[%emt 0:02:04]} Qe7 {[%emt 0:07:01]} 16. f3 {[%emt 0:04:20]} Nxc3 {[%emt 0:02:07]} 17. Rxc3 {[%emt 0:00:08]} Rfc8 {[%emt 0:03:14]} 18. Rxc8+ {[%emt 0:01:41]} Bxc8 {[%emt 0:00:33]} 19. Rc3 {[%emt 0:06:25]} Bb7 {[%emt 0:02:47]} 20. Qc2 {[%emt 0:05:01]} Bxe5 {[%emt 0:05:01]} 21. dxe5 {[%emt 0:00:12]} Ne8 {[%emt 0:00:27]} 22. Qc1 {[%emt 0:05:50]} Qd7 {[%emt 0:00:38]} 23. Rc2 {[%emt 0:01:38]} Rc8 {[%emt 0:03:56]} 24. Rxc8 {[%emt 0:00:12]} Qxc8 {[%emt 0:00:04]} 25. Qxc8 {[%emt 0:00:08]} Bxc8 {[%emt 0:00:03]} 26. a4 {[%emt 0:01:15]} Nc7 {[%emt 0:01:22]} 27. Bd4 {[%emt 0:00:20]} Na8 {[%emt 0:01:49]} 28. Kf2 {[%emt 0:06:47]} Kf7 {[%emt 0:00:34]} 29. e4 {[%emt 0:02:16]} fxe4 {[%emt 0:00:49]} 30. fxe4 {[%emt 0:00:10]} Bb7 {[%emt 0:00:45]} 31. Ke3 {[%emt 0:00:54]} dxe4 {[%emt 0:00:58]} 32. Bxe4 {[%emt 0:00:07]} Bxe4 {[%emt 0:00:13]} 33. Kxe4 {[%emt 0:00:06]} Ke7 {[%emt 0:01:40]} 34. Kd3 {[%emt 0:05:03]} Kd7 {[%emt 0:00:18]} 35. Kc4 {[%emt 0:01:13]} Kc6 {[%emt 0:02:01]} 36. Bf2 {[%emt 0:02:18]} b5+ {[%emt 0:00:52]} 37. axb5+ {[%emt 0:00:55]} axb5+ {[%emt 0:00:11]} 38. Kd4 {[%emt 0:03:18]} Nb6 {[%emt 0:03:32]} 39. Be1 {[%emt 0:01:51]} Nd5 {[%emt 0:01:35]} 40. Bd2 {[%emt 0:00:19]} Ne7 {[%emt 0:01:33]} 41. b4 {[%emt 0:02:56]} Nf5+ {[%emt 0:00:53]} 42. Ke4 {[%emt 0:00:41]} Nh4 {[%emt 0:03:19]} 43. g3 {[%emt 0:00:46]} Ng6 {[%emt 0:00:46]} 44. Be3 {[%emt 0:01:35]} Ne7 {[%emt 0:01:00]} 45. Bd2 {[%emt 0:01:52]} Nd5 {[%emt 0:00:17]} 46. Kd4 {[%emt 0:01:18]} Nb6 {[%emt 0:00:33]} 47. Bc1 {[%emt 0:01:38]} Nc4 {[%emt 0:00:27]} 48. Ke4 {[%emt 0:01:05]} Nb6 {[%emt 0:01:03]} 49. Kd4 {[%emt 0:01:04]} Nd5 {[%emt 0:00:47]} 50. Bd2 {[%emt 0:00:11]} Nb6 {[%emt 0:00:48]} 1/2-1/2